bitfinex-derivatives/quotes_ETHF0:USTF0_20250824
["timestamp","ask_amount","ask_price","bid_price","bid_amount"]
[1756074319577,3.2078,4746.4,4745.7,22.119]
[1756074319785,3.2078,4746.4,4745.8,22.7061]
[1756074319986,3.2078,4746.9,4746.0,0.6443]
[1756074320280,3.2078,4746.9,4746.1,30.7103]
[1756074320485,3.2078,4746.9,4746.1,33.41457988]
[1756074320782,3.2078,4746.9,4746.7,0.3211]
[1756074320978,0.99,4746.8,4746.1,30.372]
[1756074321284,0.99,4746.8,4746.2,22.052]
[1756074321682,0.6556,4746.8,4746.2,22.052]
[1756074321882,3.2078,4746.9,4746.8,0.3383]
[1756074322281,3.5309,4747.6,4746.9,0.3383]
[1756074322578,0.6575,4747.5,4746.9,22.03]
[1756074322886,0.99,4747.0,4746.9,22.03]
[1756074323386,0.99,4747.0,4746.3,0.3383]
[1756074323574,0.99,4747.0,4746.3,0.3211]
[1756074323783,0.6575,4747.0,4746.6,0.3211]
[1756074324080,3.5422,4747.1,4746.7,22.036]
[1756074324281,0.99,4746.8,4746.7,22.036]
[1756074324681,0.99,4746.8,4746.4,22.019]
[1756074324682,0.6556,4746.7,4746.4,22.019]
[1756074324882,4.1978,4746.5,4746.4,22.019]
[1756074325074,0.3231,4747.0,4746.4,22.3573]
[1756074325382,0.3231,4747.0,4746.4,0.3383]
[1756074325582,0.6575,4746.9,4746.4,0.3383]
[1756074325782,0.6575,4746.4,4746.3,21.999]
[1756074325985,0.99,4746.4,4746.3,21.999]
[1756074326384,0.3231,4747.4,4746.4,0.6443]
[1756074326582,0.3344,4747.3,4746.4,0.6443]
[1756074326885,0.3344,4747.3,4746.5,22.025]
[1756074327181,3.2078,4747.1,4746.5,22.025]
[1756074327388,3.2078,4747.1,4746.6,0.3383]
[1756074327588,3.2078,4747.1,4746.5,22.025]
[1756074327888,3.2078,4747.1,4746.8,0.611]
[1756074328087,0.3344,4747.8,4746.8,3.2078]
[1756074328088,0.299,4747.7,4746.8,3.2078]
[1756074328284,0.299,4747.7,4745.9,0.3127]
[1756074328285,3.2078,4746.9,4746.6,2.6799309]
[1756074328587,0.9558,4746.8,4746.1,5.115]
[1756074328980,0.3148,4746.3,4746.1,5.115]
[1756074329178,3.8216,4746.9,4746.2,0.3127]
[1756074329582,3.2078,4746.3,4745.4,0.3127]
[1756074329788,0.9558,4746.2,4745.5,22.187]
[1756074330188,0.9558,4746.2,4745.4,0.3127]
[1756074330487,3.2078,4745.8,4745.0,22.173]
[1756074330680,0.641,4745.1,4745.0,22.173]
[1756074330888,0.9558,4745.1,4745.0,22.173]
[1756074331185,0.299,4744.8,4744.2,0.3127]
[1756074331394,30.35,4748.2,4743.6,0.3127]
[1756074331395,0.299,4744.6,4743.6,0.3127]
[1756074331585,0.299,4744.6,4743.7,22.161]
[1756074331886,0.342,4744.5,4743.7,22.161]
[1756074332094,0.299,4744.4,4743.7,22.161]
[1756074332986,3.2078,4744.2,4743.8,22.152]
[1756074333186,0.3148,4744.1,4743.8,22.152]
[1756074333388,0.299,4744.0,4743.9,0.3127]
[1756074334390,0.299,4744.0,4743.9,22.4057]
[1756074334590,0.299,4744.0,4743.8,22.09]
[1756074334791,0.641,4744.0,4743.3,22.09]
[1756074334989,0.3148,4743.9,4743.3,22.09]
[1756074335292,0.641,4744.0,4742.7,3.2078]
[1756074335493,0.299,4743.5,4742.8,22.4017]
[1756074335691,0.9558,4743.3,4742.1,0.42178]
[1756074335891,0.9558,4743.3,4742.3,0.73447]
[1756074336091,0.17292533,4746.1,4743.1,0.3127]
[1756074336092,0.299,4744.0,4743.1,0.3127]
[1756074336291,3.2078,4744.1,4743.5,0.3292]
[1756074336495,0.299,4744.4,4743.6,3.2078]
[1756074337195,0.299,4744.4,4743.7,0.3127]
[1756074337892,0.299,4745.1,4744.4,0.0165]
[1756074338093,0.342,4745.0,4744.4,22.043]
[1756074338294,3.2078,4744.5,4744.0,22.052]
[1756074338598,0.299,4744.3,4744.1,22.052]
[1756074338794,0.299,4744.3,4744.2,0.3127]
[1756074338994,0.299,4744.3,4744.2,0.3292]
[1756074339496,3.2078,4744.5,4744.2,0.2983]
[1756074339797,0.299,4744.9,4744.4,0.3292]
[1756074339997,0.299,4744.9,4744.2,0.3292]
[1756074340898,0.299,4744.9,4744.2,3.9586]
[1756074341200,3.2078,4745.3,4744.5,0.3292]
[1756074341699,3.2078,4745.3,4744.8,0.71985]
[1756074341891,3.2078,4745.3,4745.0,0.42153]
[1756074342097,3.2078,4745.3,4745.2,0.6275]
[1756074342397,3.2078,4746.0,4745.8,0.42146]
[1756074342701,0.342,4746.6,4746.0,0.42144]
[1756074342890,3.8216,4746.7,4746.1,0.42143]
[1756074343089,3.5068,4746.7,4746.1,0.42143]
[1756074343601,3.5068,4746.7,4746.3,0.3127]
[1756074343803,3.2078,4746.7,4745.9,21.982]
[1756074344004,3.2078,4746.7,4746.5,0.3127]
[1756074344199,0.299,4747.3,4746.6,22.568]
[1756074344498,3.2078,4747.6,4747.1,0.3127]
[1756074344703,3.2078,4747.6,4747.1,0.2983]
[1756074344899,3.2078,4747.6,4747.4,0.3127]
[1756074345103,3.2078,4747.6,4747.5,22.2707]
[1756074345400,0.16834573,4749.6,4747.5,22.2707]
[1756074345401,0.299,4748.6,4747.5,26.2563]
[1756074345599,0.641,4749.4,4748.6,0.42121]
[1756074345797,0.299,4749.4,4748.7,22.2877]
[1756074345994,3.2078,4749.5,4749.3,0.3127]
[1756074346190,3.2078,4750.0,4749.4,22.39314]
[1756074346497,3.2078,4750.0,4749.4,21.972]
[1756074346695,0.6568,4749.8,4748.5,30.6647]
[1756074346991,0.299,4749.6,4748.5,30.6647]
[1756074347191,0.299,4749.4,4748.6,21.973]
[1756074347597,0.299,4749.4,4748.5,30.6647]
[1756074347902,1.22559626,4749.3,4748.6,21.967]
[1756074348099,3.2078,4748.9,4748.5,30.352]
[1756074348296,0.299,4748.7,4748.6,21.945]
[1756074348499,0.299,4748.7,4748.6,22.2577]
[1756074348803,0.299,4748.7,4748.6,21.945]
[1756074349401,0.299,4748.7,4748.5,30.352]
[1756074349704,0.299,4748.7,4748.6,21.945]
[1756074349898,0.299,4748.7,4748.6,22.2577]
[1756074350296,0.299,4748.7,4748.6,22.2237]
[1756074350494,3.2078,4748.9,4748.7,0.3127]
[1756074350801,3.2078,4748.9,4748.8,0.3127]
[1756074351101,0.9558,4748.8,4748.5,30.352]
[1756074351304,0.299,4748.7,4748.6,21.881]
[1756074351703,0.342,4748.7,4748.6,21.881]
[1756074351905,3.2078,4748.9,4748.6,21.881]
[1756074352108,3.2078,4748.9,4748.7,0.3127]
[1756074352403,0.9558,4748.7,4748.5,30.352]
[1756074352701,0.3148,4748.7,4748.6,21.866]
[1756074353096,0.299,4748.7,4748.6,21.866]
[1756074353298,0.9558,4748.7,4748.6,21.866]
[1756074354207,0.299,4748.7,4748.6,22.1787]
[1756074354803,0.641,4748.7,4748.6,21.866]
[1756074355506,0.342,4748.7,4748.5,30.352]
[1756074355702,0.299,4748.6,4748.5,30.6647]
[1756074355903,0.299,4748.6,4748.5,52.4547]
[1756074356104,0.299,4748.6,4740.4,5.9256201]
[1756074356105,0.299,4748.5,4747.4,0.3127]
[1756074356315,0.299,4748.2,4747.5,21.777]
[1756074356604,0.299,4748.2,4747.4,0.3127]
[1756074356605,0.3148,4747.9,4747.6,21.81]
[1756074356804,0.641,4748.0,4747.7,0.3127]
[1756074357002,3.2078,4748.1,4747.6,21.81]
[1756074357203,0.9558,4747.7,4747.6,21.81]
[1756074357801,0.9558,4747.7,4746.3,0.3293]
[1756074357802,0.6305,4747.4,4746.3,0.3293]
[1756074357996,3.2078,4746.9,4746.4,21.783]
[1756074358197,0.9867,4746.7,4746.4,21.783]
[1756074358400,0.9867,4746.8,4745.9,30.334]
[1756074358602,0.6698,4746.2,4745.9,30.334]
[1756074358806,0.9867,4746.0,4745.9,30.334]
[1756074359101,0.3136,4746.0,4745.9,52.4393]
[1756074359298,2.8957,4746.3,4746.1,0.42144]
[1756074359499,0.3136,4747.7,4747.0,0.42136]
[1756074359702,0.3136,4747.7,4746.3,0.3293]
[1756074359703,3.2078,4747.3,4746.6,0.42138]
[1756074359900,0.3136,4747.5,4746.7,22.1443]
[1756074360107,0.3136,4747.5,4746.8,21.809]
[1756074360310,0.3136,4747.5,4746.9,21.811]
[1756074360811,3.2078,4747.0,4746.0,0.3293]
[1756074361109,0.3136,4746.2,4746.1,0.3293]
[1756074361310,0.3136,4746.0,4745.9,30.6633]
[1756074361506,0.3562,4746.9,4746.2,0.3293]
[1756074362013,3.2078,4747.1,4746.2,0.3293]
[1756074362201,3.2078,4747.1,4746.3,0.42142]
[1756074362401,3.2078,4747.1,4746.4,0.3293]
[1756074362603,3.2078,4746.6,4745.9,30.334]
[1756074362909,0.3562,4746.7,4746.1,0.3293]
[1756074362910,0.3136,4746.3,4746.1,0.3293]
[1756074363114,3.2078,4746.7,4746.2,0.3293]
[1756074363409,3.2078,4746.7,4746.0,22.21444]
[1756074363610,0.3136,4746.5,4746.4,0.3293]
[1756074363816,0.3136,4746.5,4746.4,22.1133]
[1756074364413,0.3136,4746.5,4746.4,0.3293]
[1756074364606,0.3136,4746.5,4746.4,22.1063]
[1756074365008,3.2078,4746.7,4746.4,22.1063]
[1756074365211,3.2078,4746.7,4746.0,0.3293]
[1756074365404,0.3136,4746.6,4746.0,0.3293]
[1756074365606,3.2078,4746.2,4745.9,30.334]
[1756074365810,0.9867,4746.1,4746.0,21.751]
[1756074366007,0.9867,4746.0,4745.9,21.748]
[1756074366208,0.9867,4745.9,4745.8,21.746]
[1756074366408,0.6698,4745.8,4745.6,21.742]
[1756074366610,4.1945,4745.7,4745.6,21.742]
[1756074368817,0.3136,4746.3,4745.6,22.0713]
[1756074369117,3.2078,4746.5,4745.8,0.3293]
[1756074369309,3.2078,4746.5,4745.9,21.7]
[1756074369510,0.3136,4746.3,4746.0,21.7]
[1756074369717,3.2078,4746.5,4746.4,0.42141]
[1756074369912,3.5214,4746.5,4746.4,0.3293]
[1756074370108,0.3136,4747.1,4746.5,0.4214]
[1756074370311,0.3136,4747.1,4746.6,0.3293]
[1756074370617,0.3136,4747.1,4746.7,0.3293]
[1756074370817,0.3136,4747.0,4746.8,0.3293]
[1756074371019,0.3136,4747.3,4746.5,0.3293]
[1756074371414,0.6698,4746.8,4746.6,21.664]
[1756074371717,0.3136,4746.6,4745.9,0.3293]
[1756074371921,3.2078,4746.6,4746.0,21.664]
[1756074372211,0.6731,4746.1,4745.4,0.3293]
[1756074372413,3.2078,4746.1,4744.6,0.3293]
[1756074372617,5.603,4749.1,4744.6,0.3293]
[1756074372618,0.3136,4745.2,4744.6,0.3293]
[1756074372821,0.3136,4745.2,4744.6,21.9903]
[1756074373718,0.3136,4745.2,4744.7,0.42155]
[1756074373915,0.3136,4745.2,4744.8,0.3293]
[1756074374222,0.3136,4745.2,4744.9,0.3293]
[1756074374410,0.3136,4745.2,4744.6,21.661]
[1756074374612,0.3136,4745.2,4745.1,0.3293]
[1756074374813,0.6698,4745.2,4744.6,25.1981]
[1756074375008,3.2078,4745.1,4744.6,0.3293]
[1756074375318,3.2078,4745.1,4744.5,30.34]
[1756074375319,0.9867,4745.0,4744.7,21.614]
[1756074375519,0.3136,4744.9,4744.8,0.3293]
[1756074375818,0.3136,4745.5,4744.8,0.3293]
[1756074376909,3.2078,4745.3,4744.8,0.3293]
[1756074377109,0.3136,4745.0,4744.9,21.604]
[1756074377516,0.3136,4745.0,4744.9,21.9333]
[1756074377918,0.3136,4745.0,4744.9,0.3293]
[1756074378219,0.3136,4744.8,4744.7,21.572]
[1756074378419,0.3136,4744.8,4744.7,21.9013]
[1756074378925,3.5214,4745.3,4744.7,25.572]
[1756074379114,3.5214,4745.3,4744.8,0.3293]
[1756074379315,3.5214,4745.3,4744.7,21.99356]
[1756074379522,3.2078,4745.3,4744.8,21.561]
[1756074379817,3.2078,4745.3,4744.2,0.3293]
[1756074380020,0.3136,4745.1,4744.8,0.3293]
[1756074380222,3.2078,4746.3,4745.3,0.4215]
[1756074380518,3.5214,4746.3,4745.4,0.42149]
[1756074380715,3.5214,4746.3,4745.5,21.578]
[1756074380921,3.5214,4746.3,4745.6,0.3293]
[1756074382522,0.3136,4746.9,4745.9,0.3293]
[1756074382820,0.3136,4747.5,4746.4,0.3293]
[1756074383015,0.3136,4747.5,4746.6,0.3293]
[1756074383216,3.2078,4747.8,4746.7,0.3293]
[1756074383413,3.2078,4747.8,4747.0,0.42135]
[1756074383616,3.2078,4747.8,4747.1,21.8923]
[1756074383816,0.3136,4747.7,4747.2,21.557]
[1756074384013,0.3562,4747.6,4747.3,0.3293]
[1756074384219,3.5214,4747.8,4747.3,0.3293]
[1756074384528,3.2078,4747.8,4747.2,21.557]
[1756074384719,3.564,4747.8,4747.2,21.557]
[1756074385020,0.3136,4747.6,4747.5,0.3293]
[1756074385218,0.3136,4747.6,4747.5,21.8703]
[1756074385419,0.3136,4747.6,4747.5,0.3293]
[1756074385620,0.3136,4747.5,4746.9,0.3293]
[1756074385920,0.3562,4747.3,4746.9,0.3293]
[1756074386121,3.2078,4747.1,4747.0,21.531]
[1756074386322,4.1945,4747.1,4747.0,21.531]
[1756074386724,0.9867,4747.0,4746.7,21.523]
[1756074387422,0.6731,4746.6,4745.7,0.3293]
[1756074387623,0.3176,4746.4,4745.8,21.51]
[1756074388922,0.3176,4747.0,4746.2,3.2078]
[1756074389117,3.2078,4747.3,4746.9,0.3162]
[1756074389318,0.6515,4747.2,4747.0,21.476]
[1756074389524,0.3176,4747.1,4747.0,21.476]
[1756074389726,3.2078,4747.9,4747.2,0.3162]
[1756074389920,3.5254,4748.5,4747.5,0.3162]
[1756074390124,3.5254,4748.5,4747.7,0.3162]
[1756074390324,0.3339,4748.3,4747.8,21.48]
[1756074390526,3.2078,4748.5,4747.8,21.48]
[1756074390726,0.9654,4748.4,4747.8,21.48]
[1756074391129,0.9654,4747.9,4747.8,21.48]
[1756074391725,3.2078,4748.0,4747.9,0.3162]
[1756074392627,3.5254,4748.5,4747.9,0.3162]
[1756074393732,0.3176,4748.4,4748.1,0.3162]
[1756074393941,0.3176,4748.4,4748.3,0.3162]
[1756074394138,0.3176,4748.4,4748.0,21.432]
[1756074394139,3.2078,4748.5,4748.0,21.432]
[1756074394335,3.2078,4748.5,4748.2,0.3162]
[1756074394535,3.2078,4748.5,4748.1,0.3162]
[1756074394736,3.5254,4748.5,4748.0,21.85326]
[1756074394936,3.5254,4748.5,4748.2,0.3162]
[1756074395133,0.3176,4748.4,4748.3,21.396]
[1756074395438,0.3176,4748.4,4748.3,21.7122]
[1756074396836,0.1,4750.2,4748.2,21.388]
[1756074396837,0.3176,4748.3,4748.2,21.388]
[1756074397136,0.3176,4748.2,4748.1,21.359]
[1756074397342,0.3176,4748.2,4748.1,21.6752]
[1756074398639,0.3176,4748.7,4748.1,21.7122]
[1756074398940,3.2078,4748.5,4748.2,21.375]
[1756074399140,0.9654,4748.4,4748.2,21.375]
[1756074399439,0.9654,4748.3,4748.2,21.375]
[1756074399636,3.2078,4748.5,4747.6,0.3162]
[1756074399941,0.3176,4747.7,4747.4,21.363]
[1756074400140,0.6478,4747.7,4746.7,21.365]
[1756074400340,0.3339,4746.9,4746.7,21.365]
[1756074400532,3.2078,4747.1,4746.7,21.365]
[1756074400732,0.9654,4746.8,4746.7,21.365]
[1756074402131,0.3176,4746.6,4746.5,21.349]
[1756074402338,3.5254,4746.6,4746.5,21.338]
[1756074402843,3.5254,4746.6,4746.5,21.6542]
[1756074403239,3.5254,4746.6,4746.0,0.3162]
[1756074403240,3.8556,4746.6,4746.0,0.3162]
[1756074403436,3.2078,4746.1,4745.5,30.337]
[1756074403745,0.3176,4745.8,4745.7,0.3162]
[1756074404245,3.2078,4746.1,4745.7,0.3162]
[1756074404447,0.3139,4746.4,4745.9,0.3162]
[1756074404745,0.3176,4746.2,4746.1,0.3162]
[1756074405047,3.2078,4746.5,4746.1,0.3162]
[1756074405346,3.2078,4746.5,4746.4,0.3162]
[1756074405538,3.5254,4746.5,4746.4,21.6092]
[1756074405741,3.2078,4746.5,4746.4,21.6092]
[1756074407034,3.2078,4746.5,4746.4,0.3162]
[1756074407244,3.2078,4746.5,4746.4,21.6012]
[1756074407747,3.5254,4746.5,4746.4,21.6012]
[1756074409237,3.5254,4746.5,4746.4,0.3162]
[1756074409443,3.2078,4746.5,4746.4,4.3162]
[1756074409639,0.3176,4747.5,4746.5,1.0535]
[1756074409839,0.3176,4748.2,4747.0,3.2078]
[1756074410344,3.2078,4747.4,4747.1,21.285]
[1756074410544,0.3339,4747.3,4746.9,21.285]
[1756074410852,0.9654,4747.0,4746.9,21.285]
[1756074412741,0.6315,4747.0,4746.9,21.285]
[1756074412950,0.3176,4747.0,4746.9,21.28056844]
[1756074413147,0.6315,4747.0,4746.9,21.28056844]
[1756074413547,0.9654,4747.0,4746.1,3.2078]
[1756074413743,0.6478,4746.7,4745.6,3.2078]
[1756074413951,3.2078,4746.4,4745.5,30.337]
[1756074414253,0.9654,4745.7,4745.6,21.284]
[1756074414547,0.9654,4745.7,4744.4,3.2078]
[1756074414548,0.3176,4745.6,4744.4,3.2078]
[1756074414748,0.6478,4745.7,4744.4,3.2078]
[1756074414749,0.3176,4745.2,4744.4,3.2078]
[1756074415049,0.3176,4745.2,4744.5,21.284]
[1756074415257,0.6515,4745.2,4744.5,21.284]
[1756074415447,0.3176,4745.1,4744.5,21.284]
[1756074417348,0.3176,4745.1,4744.6,21.286]
[1756074417549,0.6478,4745.0,4744.6,21.286]
[1756074417747,3.2078,4745.3,4744.6,21.286]
[1756074417955,0.9427,4745.2,4744.6,21.286]
[1756074418150,0.2906,4745.1,4744.6,21.286]
[1756074418648,0.3483,4744.9,4744.6,21.286]
[1756074418850,0.2906,4744.7,4744.6,21.286]
[1756074419353,0.2906,4745.2,4744.6,21.286]
[1756074419650,0.2906,4745.9,4745.0,3.2078]
[1756074419855,0.2906,4745.9,4745.1,0.42152]
[1756074420150,3.2078,4746.1,4745.3,0.4215]
[1756074420753,3.2078,4746.1,4745.4,21.286]
[1756074420955,0.2906,4745.9,4745.5,21.286]
[1756074421157,3.2078,4745.6,4744.1,3.62941]
[1756074421361,0.5944,4745.5,4744.3,0.42159]
[1756074421850,0.5944,4745.5,4744.6,0.42157]
[1756074422056,3.8022,4746.1,4744.7,3.2078]
[1756074422257,3.8022,4746.1,4744.8,0.42155]
[1756074422446,3.8022,4746.1,4744.9,21.70654]
[1756074422649,3.8022,4746.1,4745.0,0.42153]
[1756074423052,3.8022,4746.1,4745.1,0.42152]
[1756074424259,0.2906,4746.0,4744.9,21.285]
[1756074424659,0.2906,4746.0,4744.9,21.70654]
[1756074424858,3.5116,4746.1,4745.5,0.42149]
[1756074425055,3.2078,4746.1,4745.6,21.70648]
[1756074425256,0.3038,4746.8,4745.9,3.2078]
[1756074425257,3.5116,4746.8,4745.9,3.2078]
[1756074425556,0.2906,4747.0,4746.4,3.62921]
[1756074425759,0.2906,4747.5,4746.7,0.42138]
[1756074425961,0.2906,4747.5,4746.5,21.7054]
[1756074426154,0.2906,4747.5,4746.5,21.284]
[1756074426351,0.5944,4747.5,4746.5,21.284]
[1756074426558,0.2906,4747.4,4746.4,3.2078]
[1756074426758,0.2906,4747.4,4746.6,21.284]
[1756074426958,3.2078,4746.9,4746.6,21.284]
[1756074427151,0.5944,4746.7,4746.6,21.284]
[1756074429164,0.9427,4746.7,4746.6,21.284]
[1756074430557,0.9427,4746.7,4746.6,21.28]
[1756074432363,0.5944,4746.7,4746.6,21.28]
[1756074433065,0.5944,4746.7,4746.6,21.278]
[1756074433267,0.9427,4746.7,4746.6,21.278]
[1756074434167,0.9427,4746.5,4746.4,21.277]
[1756074434366,0.9427,4746.5,4744.7,1.05389]
[1756074434367,0.2906,4746.4,4745.0,0.42153]
[1756074434573,0.5944,4746.0,4745.3,21.276]
[1756074434763,3.2078,4746.1,4745.5,0.42149]
[1756074434963,3.2078,4746.1,4745.3,21.276]
[1756074435270,3.2078,4746.1,4745.3,21.6975]
[1756074435464,3.2078,4746.1,4745.4,0.42149]
[1756074435767,3.2078,4746.1,4745.3,21.276]
[1756074436067,3.2078,4746.8,4745.9,0.42145]
[1756074436265,3.2078,4746.8,4746.0,21.274]
[1756074437364,3.2078,4746.8,4746.2,3.2078]
[1756074437568,3.2078,4746.8,4746.0,21.274]
[1756074438168,0.2906,4746.7,4745.7,3.62927]
[1756074438471,0.3038,4746.6,4745.8,21.271]
[1756074439772,3.2078,4746.8,4746.0,0.42144]
[1756074440164,0.2906,4747.2,4746.4,0.4214]
[1756074440473,0.2906,4747.2,4746.5,21.6904]
[1756074440670,0.2906,4747.7,4747.0,3.2078]
[1756074440971,3.2078,4747.9,4747.1,0.42134]
[1756074441171,3.2078,4747.9,4747.2,21.268]
[1756074441869,0.2906,4747.8,4747.2,21.268]
[1756074442779,0.2906,4747.8,4747.3,0.42132]
[1756074444577,3.2078,4747.9,4747.2,21.268]
[1756074444776,3.2078,4748.6,4747.5,3.2078]
[1756074444979,3.2078,4748.6,4748.2,0.42124]
[1756074445178,0.2906,4748.7,4748.3,21.261]
[1756074445374,0.2906,4748.7,4748.4,0.42123]
[1756074445573,0.2906,4748.7,4748.5,0.42122]
[1756074445769,3.2078,4749.1,4748.6,0.42121]
[1756074445976,0.2906,4749.3,4748.3,21.261]
[1756074446481,0.2906,4749.3,4748.6,3.2078]
[1756074447076,0.2906,4749.3,4748.7,21.256]
[1756074448374,0.2941,4749.1,4748.8,21.256]
[1756074448576,0.9121,4749.5,4748.8,21.256]
[1756074448874,0.1700253,4750.8,4747.2,1.05333]
[1756074448875,0.9121,4749.0,4747.2,3.2078]
[1756074449081,0.5858,4748.0,4747.3,21.253]
[1756074449275,0.2941,4747.9,4747.3,21.253]
[1756074451172,0.2941,4747.9,4747.2,3.2078]
[1756074451377,0.2941,4747.9,4747.3,21.247]
[1756074453179,0.2941,4747.9,4747.2,3.2078]
[1756074453385,0.2941,4747.9,4747.3,21.244]
[1756074453780,0.2941,4747.7,4747.4,21.244]
[1756074453978,0.2941,4747.6,4747.0,30.344]
[1756074454179,0.5858,4747.6,4747.1,21.242]
[1756074454381,3.2078,4747.8,4747.0,30.344]
[1756074454585,0.9121,4747.6,4747.1,21.241]
[1756074454780,0.9121,4747.5,4747.1,21.241]
[1756074454981,0.9121,4747.7,4747.1,21.241]
[1756074455483,0.2941,4747.6,4747.1,21.241]
[1756074455784,0.5858,4747.7,4747.1,21.241]
[1756074455984,0.9121,4747.6,4747.2,21.239]
[1756074456179,0.9121,4747.5,4747.2,21.239]
[1756074456386,3.2078,4747.3,4746.4,3.2078]
[1756074456586,0.5858,4747.0,4746.5,21.238]
[1756074456882,0.3263,4746.9,4746.5,21.238]
[1756074457185,0.9121,4747.2,4746.5,21.238]
[1756074457387,0.2941,4747.1,4746.5,21.238]
[1756074457793,3.2078,4747.3,4746.5,21.238]
[1756074457988,0.2941,4746.7,4746.5,21.238]
[1756074458293,0.2941,4747.2,4746.5,21.238]
[1756074459183,0.3263,4747.1,4746.4,3.2078]
[1756074459384,0.5858,4746.4,4745.8,3.2078]
[1756074459589,0.3263,4746.3,4745.9,21.234]
[1756074459901,0.2941,4746.0,4745.9,21.234]
[1756074460494,0.2941,4746.0,4745.8,3.2078]
[1756074460495,0.5858,4745.9,4745.6,30.335]
[1756074460793,0.5858,4745.8,4745.7,21.232]
[1756074461199,0.5858,4745.6,4744.1,3.62941]
[1756074461400,0.2941,4745.2,4744.3,0.42159]
[1756074461594,0.2941,4745.2,4744.2,21.23]
[1756074462196,0.2941,4745.0,4744.3,21.23]
[1756074462397,0.3263,4744.9,4744.1,3.2078]
[1756074462598,0.9121,4744.8,4744.4,21.23]
[1756074462898,0.2941,4744.6,4744.4,21.23]
[1756074463397,0.2941,4744.5,4744.4,21.23]
[1756074464189,3.2078,4745.4,4744.6,0.42156]
[1756074464395,3.2078,4745.4,4744.3,0.42159]
[1756074464396,0.2941,4745.3,4744.3,0.42159]
[1756074464693,0.20702693,4747.2,4744.0,30.336]
[1756074464694,0.2941,4748.2,4746.0,1.05361]
[1756074464903,0.2917,4748.3,4748.0,3.2078]
[1756074465196,0.2917,4748.3,4746.1,51.564]
[1756074465197,0.5858,4748.2,4748.1,21.225]
[1756074465600,0.9121,4748.2,4748.1,21.225]
[1756074466091,0.42128,4747.9,4747.7,3.2078]
[1756074466296,1.33338,4747.9,4747.8,21.228]
[1756074466498,0.5858,4748.4,4747.8,21.228]
[1756074466800,0.42127,4748.1,4747.8,21.228]
[1756074467300,0.71537,4748.1,4747.8,21.228]
[1756074467496,0.2941,4748.0,4747.8,21.228]
[1756074468202,0.71534,4748.3,4747.8,21.228]
[1756074468391,11.176265,4763.6,4747.8,21.228]
[1756074468392,0.2917,4750.0,4748.2,3.2078]
[1756074468591,0.3941,4750.2,4749.6,3.62892]
[1756074468796,0.2941,4750.1,4749.7,21.221]
[1756074470501,0.2941,4750.1,4749.8,21.221]
[1756074470901,0.2941,4750.1,4749.9,21.219]
[1756074471101,0.3263,4750.1,4750.0,21.214]
[1756074471301,0.9121,4750.1,4750.0,21.214]
[1756074471900,0.5858,4750.1,4750.0,21.214]
[1756074472103,0.2941,4750.1,4750.0,21.214]
[1756074472297,0.1,4750.2,4750.0,21.63509]
[1756074472497,0.1,4750.2,4750.1,3.2078]
[1756074472700,0.3941,4750.2,4750.1,24.4198]
[1756074473095,0.1,4750.2,4750.1,24.4198]
[1756074473602,0.3941,4750.2,4750.1,24.4198]
[1756074473996,0.1,4750.2,4750.1,24.4198]
[1756074474798,0.3941,4750.2,4750.1,21.212]
[1756074475103,0.6858,4750.2,4750.1,21.205]
[1756074475699,1.0121,4750.2,4750.1,21.205]
[1756074478506,0.3007,4750.1,4749.6,3.2078]
[1756074478805,0.9475,4749.9,4749.8,21.198]
[1756074480003,0.9475,4749.9,4749.6,3.2078]
[1756074480193,0.9475,4749.8,4749.7,21.192]
[1756074480400,0.3084,4749.8,4749.6,3.2078]
[1756074480698,0.1,4750.2,4750.0,0.42109]
[1756074481203,0.1,4750.2,4750.1,7.2078]
[1756074483106,0.1,4750.2,4750.1,9.98121578]
[1756074483308,0.1,4750.2,4750.1,31.16621578]
[1756074484403,0.1,4750.2,4750.1,27.16621578]
[1756074484604,0.1,4750.2,4750.1,3.2078]
[1756074484804,0.4007,4750.2,4750.1,24.3898]
[1756074485005,0.7091,4750.2,4750.1,3.2078]
[1756074485204,1.0475,4750.2,4750.1,24.3898]
[1756074485405,1.0475,4750.2,4750.1,21.181]
[1756074486307,0.9475,4750.1,4749.7,30.325]
[1756074486506,0.9475,4750.1,4749.8,21.179]
[1756074486910,0.3007,4749.9,4749.7,30.325]
[1756074487110,0.3007,4749.8,4749.7,30.325]
[1756074487304,0.1,4750.2,4749.7,51.92212]
[1756074487512,0.3007,4750.0,4749.7,51.501]
[1756074487714,0.3007,4749.9,4749.7,51.501]
[1756074488416,0.1,4750.2,4749.7,51.92212]
[1756074489010,0.1,4750.2,4750.0,3.62889]
[1756074489211,0.1,4750.2,4750.1,21.172]
[1756074490912,0.9475,4750.1,4750.0,3.2078]
[1756074491114,0.9475,4750.1,4750.0,21.169]